lending/lending_fUSD_20260411
["ID","MTS","AMOUNT","RATE_DAILY","PERIOD"]
[420292609,1775915458056,-288.931273,0.00013699,2]
[420292610,1775915458070,-211.657199,0.00013699,2]
[420292611,1775915458091,-350.190847,0.00013699,2]
[420292612,1775915458105,-211.657199,0.00013699,2]
[420292613,1775915458139,-1600.0,0.00013811,2]
[420292614,1775915458162,-2400.0,0.000139,5]
[420292615,1775915458179,-168.47,0.00013903,2]
[420292616,1775915458195,-168.47,0.00013903,2]
[420292617,1775915458230,-2000.0,0.00013904,2]
[420292618,1775915458245,-886.52,0.0001392,2]
[420292619,1775915458260,-1240.45,0.00013942,2]
[420292620,1775915458273,-150.0,0.0001403,2]
[420292621,1775915458286,-246.98942351,0.0001403,2]
[420292622,1775915458304,-163.83195837,0.0001403,2]
[420292623,1775915458317,-151.0,0.00014091,5]
[420292624,1775915458348,-238.628273,0.00014096,7]
[420292625,1775915458358,-315.025991,0.00014096,7]
[420292626,1775915458369,-298.940478,0.00014096,2]
[420292627,1775915458383,-527.441123,0.00014096,7]
[420292628,1775915458393,-271.621601,0.00014096,2]
[420292629,1775915458404,-1240.45,0.00014216,2]
[420292630,1775915458417,-1047.0,0.00014236,2]
[420292631,1775915458433,-3524.0,0.00014236,2]
[420292632,1775915458442,-1264.0,0.00014236,2]
[420292633,1775915458454,-200.0,0.00014236,2]
[420292634,1775915458469,-2472.0,0.00014236,2]
[420292635,1775915458492,-416.0,0.00014236,2]
[420292636,1775915458501,-150.0,0.00014236,2]
[420292637,1775915458512,-326.333182,0.00014236,2]
[420292638,1775915458533,-326.333182,0.00014236,2]
[420292639,1775915458543,-326.333182,0.00014236,2]
[420292640,1775915458557,-326.333182,0.00014236,2]
[420292641,1775915458571,-151.0,0.00014236,2]
[420292642,1775915458581,-151.0,0.00014236,2]
[420292643,1775915458590,-151.0,0.00014236,2]
[420292645,1775915458608,-151.515363,0.00014236,2]
[420292647,1775915458618,-151.0,0.00014236,2]
[420292649,1775915458629,-151.515363,0.00014236,2]
[420292651,1775915458643,-151.515363,0.00014236,2]
[420292653,1775915458652,-151.0,0.00014236,2]
[420292655,1775915458670,-151.515363,0.00014236,2]
[420292656,1775915458680,-151.0,0.00014236,2]
[420292657,1775915458690,-151.0,0.00014236,2]
[420292658,1775915458700,-1240.45,0.0001449,2]
[420292659,1775915458715,-254.405063,0.00014534,2]
[420292660,1775915458727,-668.1162223,0.00014577,2]
[420292661,1775915458737,-247.845,0.000147,2]
[420292662,1775915458746,-1240.45,0.00014764,2]
[420292663,1775915458758,-2835.3,0.000148,2]
[420292664,1775915458769,-2835.3,0.000148,2]
[420292665,1775915458779,-151.0,0.00014832,2]
[420292666,1775915458794,-322.940572,0.00014832,2]
[420292667,1775915458804,-322.940572,0.00014832,2]
[420292668,1775915458813,-151.0,0.00014832,2]
[420292669,1775915458825,-238.936369,0.00014832,2]
[420292670,1775915458836,-322.940572,0.00014832,2]
[420292672,1775915458846,-238.936369,0.00014832,2]
[420292674,1775915458858,-322.94058,0.00014832,2]
[420292676,1775915458869,-238.936369,0.00014832,2]
[420292678,1775915458881,-151.0,0.00014832,2]
[420292680,1775915458891,-238.936361,0.00014832,2]
[420292682,1775915458902,-857.640247,0.00014832,2]
[420292684,1775915458914,-151.0,0.00014832,2]
[420292686,1775915458924,-857.640247,0.00014832,2]
[420292688,1775915458933,-857.640247,0.00014832,2]
[420292689,1775915458950,-857.64024,0.00014832,2]
[420292690,1775915458962,-151.0,0.00014832,2]
[420292691,1775915458980,-19424.10205246,0.00014832,2]
[420292692,1775915458992,-187.06189,0.00014832,2]
[420292693,1775915459002,-187.06189,0.00014832,2]
[420292694,1775915459011,-187.06189,0.00014832,2]
[420292695,1775915459025,-187.061882,0.00014832,2]
[420292696,1775915459050,-151.0,0.00014832,2]
[420292697,1775915459060,-367.577885,0.00014832,2]
[420292698,1775915459080,-367.577885,0.00014832,2]
[420292699,1775915459091,-151.0,0.00014832,2]
[420292700,1775915459113,-367.577885,0.00014832,2]
[420292701,1775915459122,-2003.001168,0.00014832,2]
[420292702,1775915459138,-367.577881,0.00014832,2]
[420292703,1775915459163,-2003.001168,0.00014832,2]
[420292704,1775915459173,-2003.001168,0.00014832,2]
[420292705,1775915459193,-350.190847,0.00014832,2]
[420292706,1775915459202,-2003.001159,0.00014832,2]
[420292707,1775915459214,-211.657199,0.00014832,2]
[420292708,1775915459223,-350.190847,0.00014832,2]
[420292709,1775915459241,-211.657199,0.00014832,2]
[420292710,1775915459254,-350.190847,0.00014832,2]
[420292711,1775915459266,-211.657199,0.00014832,2]
[420292712,1775915459301,-350.190849,0.00014832,2]
[420292713,1775915459330,-211.657193,0.00014832,2]
[420292714,1775915459340,-2359.56,0.00014853,2]
[420292715,1775915459357,-690.84,0.00014914,2]
[420292716,1775915459375,-1240.45,0.00015038,2]
[420292717,1775915459385,-173.05534137,0.00015091,5]
[420292718,1775915459404,-1240.45,0.00015312,2]
[420292719,1775915459423,-1600.0,0.00015345,2]
[420292720,1775915459432,-163.813515,0.00015438,7]
[420292721,1775915459448,-274.269384,0.00015438,7]
[420292722,1775915459470,-500.0,0.00015499,2]
[420292723,1775915459502,-500.0,0.00015499,2]
[420292724,1775915459512,-500.0,0.00015499,2]
[420292725,1775915459528,-766.367923,0.000155,2]
[420292726,1775915459545,-151.0,0.000155,2]
[420292727,1775915459555,-151.0,0.000155,2]
[420292728,1775915459577,-151.0,0.000155,2]
[420292729,1775915459590,-151.0,0.000155,2]
[420292730,1775915459605,-151.0,0.000155,2]
[420292731,1775915459617,-151.0,0.000155,2]
[420292732,1775915459650,-151.0,0.000155,2]
[420292733,1775915459665,-151.0,0.000155,2]
[420292734,1775915459700,-151.0,0.000155,2]
[420292735,1775915459714,-151.0,0.000155,2]
[420292736,1775915459744,-151.0,0.000155,2]
[420292737,1775915460114,-151.0,0.000155,2]
[420292738,1775915460137,-151.0,0.000155,2]
[420292739,1775915460149,-151.0,0.000155,2]
[420292740,1775915460166,-151.0,0.000155,2]
[420292741,1775915460176,-151.0,0.000155,2]
[420292742,1775915460186,-867.92593204,0.000155,2]
[420292743,1775915460196,-800.0,0.00015507,2]
[420292744,1775915460207,-250.0,0.00015534,2]
[420292745,1775915460220,-250.0,0.00015534,2]
[420292746,1775915460232,-319.85,0.00015534,2]
[420292747,1775915460251,-178.54329618,0.00015558,2]
[420292748,1775915460262,-182.09945629,0.00015558,2]
[420292749,1775915460273,-1339.03269776,0.00015558,2]
[420292750,1775915460289,-183.67097214,0.00015558,2]
[420292751,1775915460302,-500.0,0.00015573,2]
[420292752,1775915460326,-1240.45,0.00015586,2]
[420292753,1775915460337,-151.0,0.00015597,2]
[420292754,1775915460351,-151.0,0.00015597,2]
[420292755,1775915460377,-500.0,0.00015599,2]
[420292756,1775915460388,-523.12,0.00015599,2]
[420292757,1775915460419,-500.0,0.00015599,2]
[420292758,1775915460445,-155.0,0.00015599,2]
[420292759,1775915460456,-171.38948033,0.00015599,2]
[420292760,1775915460465,-500.0,0.00015599,2]
[420292761,1775915460492,-500.0,0.00015599,2]
[420292762,1775915460504,-500.0,0.00015599,2]
[420292763,1775915460514,-500.0,0.00015599,2]
[420292764,1775915460542,-500.0,0.00015599,2]
[420292765,1775915460554,-500.0,0.00015599,2]
[420292766,1775915460579,-500.0,0.00015599,2]
[420292767,1775915460605,-500.0,0.00015599,2]
[420292768,1775915460627,-500.0,0.00015599,2]
[420292769,1775915460636,-500.0,0.00015599,2]
[420292770,1775915460658,-500.0,0.00015599,2]
[420292771,1775915460667,-500.0,0.00015599,2]
[420292772,1775915460677,-600530.36417935,0.000156,2]
[420292773,1775915464102,-151.0,0.00013668,2]
[420292774,1775915464125,-151.0,0.00013699,2]
[420292775,1775915464137,-20.94797957,0.00013699,2]
[420292776,1775915464186,-130.05202043,0.00013699,2]
[420292777,1775915464202,-151.0,0.00013699,2]
[420292778,1775915464227,-151.0,0.00013699,2]
[420292779,1775915464244,-736.026,0.00014236,2]
[420292780,1775915464261,-616.49313322,0.000156,2]
[420292781,1775915468033,292.0,0.00028197,120]
[420292782,1775915469487,206.0,0.00028197,120]
[420292783,1775915475708,600.0,0.000288,120]
[420292784,1775915476857,600.0,0.000288,120]
[420292785,1775915477777,537.0,0.000288,120]
[420292786,1775915486830,8726.9,0.00030137,120]
[420292787,1775915623964,500.0,0.00029642,120]
[420292788,1775915637609,-272.0,8.547e-05,2]
[420292789,1775915637635,-9728.0,8.548e-05,2]
[420292790,1775915640080,-10000.0,8.548e-05,2]
[420292791,1775915642355,-300.0,8.547e-05,2]
[420292792,1775915642411,-1160.4316,8.548e-05,2]
[420292793,1775915642494,-2668.9931,8.548e-05,2]
[420292794,1775915642577,-2500.0,8.548e-05,2]
[420292795,1775915642620,-3370.5753,8.548e-05,2]
[420292796,1775915642755,-10000.0,8.548e-05,2]
[420292797,1775915642867,-10000.0,8.548e-05,2]
[420292798,1775915643054,-10000.0,8.548e-05,2]
[420292799,1775915643226,-10000.0,8.548e-05,2]
[420292800,1775915643508,-10000.0,8.548e-05,2]
[420292801,1775915643906,-10000.0,8.548e-05,2]
[420292802,1775915644364,-10000.0,8.548e-05,2]
[420292803,1775915644677,-10000.0,8.548e-05,2]
[420292804,1775915645032,-10000.0,8.548e-05,2]
[420292805,1775915645407,-10000.0,8.548e-05,2]
[420292806,1775915645828,-10000.0,8.548e-05,2]
[420292807,1775915646204,-10000.0,8.548e-05,2]
[420292808,1775915646573,-10000.0,8.548e-05,2]
[420292809,1775915647149,-10000.0,8.548e-05,2]
[420292810,1775915647295,-10000.0,8.548e-05,2]
[420292811,1775915647666,-10000.0,8.548e-05,2]
[420292812,1775915647959,-10000.0,8.548e-05,2]
[420292813,1775915648373,-10000.0,8.548e-05,2]
[420292814,1775915648686,-10000.0,8.548e-05,2]
[420292815,1775915649063,-10000.0,8.548e-05,2]
[420292816,1775915649487,-10000.0,8.548e-05,2]
[420292817,1775915649734,-10000.0,8.548e-05,2]
[420292818,1775915650146,-10000.0,8.548e-05,2]
[420292819,1775915650518,-10000.0,8.548e-05,2]
[420292820,1775915650852,-10000.0,8.548e-05,2]
[420292821,1775915655947,-10000.0,8.548e-05,2]
[420292822,1775915663288,-10000.0,8.548e-05,2]
[420292823,1775915675036,-447.3950478,8.547e-05,2]
[420292824,1775915675082,-430.92067117,8.547e-05,2]
[420292825,1775915675116,-500.0,8.547e-05,2]
[420292826,1775915675144,-500.0,8.547e-05,2]
[420292827,1775915675190,-500.0,8.547e-05,2]
[420292828,1775915675214,-500.0,8.547e-05,2]
[420292829,1775915675250,-417.97701587,8.547e-05,2]
[420292830,1775915675287,-588.19694181,8.547e-05,2]
[420292831,1775915675309,-500.0,8.547e-05,2]
[420292832,1775915675343,-292.40002335,8.547e-05,2]
[420292833,1775915723782,-207.59997665,8.547e-05,2]
[420292834,1775915723809,-500.0,8.547e-05,2]
[420292835,1775915723841,-292.40002335,8.547e-05,2]
[420292836,1775915779702,-207.59997665,8.547e-05,2]
[420292837,1775915779741,-196.83489408,8.547e-05,2]
[420292838,1775915779770,-195.56512927,8.547e-05,2]
[420292839,1775915801790,10000.01,8.448e-05,2]
[420292840,1775915801817,10000.01,8.448e-05,2]
[420292841,1775915801843,10000.01,8.448e-05,2]
[420292842,1775915801870,10000.01,8.448e-05,2]
[420292843,1775915801895,10000.01,8.448e-05,2]
[420292844,1775915801920,10000.01,8.448e-05,2]
[420292845,1775915801946,10000.01,8.448e-05,2]
[420292846,1775915801970,10000.01,8.448e-05,2]
[420292847,1775915801994,10000.01,8.448e-05,2]
[420292848,1775915802023,10000.01,8.448e-05,2]
[420292849,1775915802050,5000.01,8.448e-05,2]
[420292850,1775915802078,5000.01,8.448e-05,2]
[420292851,1775915802106,5000.01,8.448e-05,2]
[420292852,1775915802151,5000.01,8.448e-05,2]
[420292853,1775915802189,5000.01,8.448e-05,2]
[420292854,1775915802259,5000.01,8.448e-05,2]
[420292855,1775915802305,5000.01,8.448e-05,2]
[420292856,1775915802351,5000.01,8.448e-05,2]
[420292857,1775915802382,5000.01,8.448e-05,2]
[420292858,1775915802444,5000.01,8.448e-05,2]
[420292859,1775915802507,114586.8,8.448e-05,2]
[420292860,1775915802583,1397.0,0.0003013,120]
[420292861,1775915802672,395.0,0.0003013,120]
[420292862,1775915803546,720.0,0.0003013,120]
[420292863,1775915827447,200.0,0.00026221,120]
[420292864,1775915828233,200.0,0.00026221,120]
[420292865,1775915829034,166.0,0.00026221,120]
[420292866,1775915836174,292.0,0.00026301,120]
[420292867,1775915836778,203.0,0.00026301,120]
[420292868,1775915854999,1189.0,0.0003013,120]
[420292869,1775915877548,3182.56317461,8.448e-05,2]
[420292870,1775915877661,2682.05976812,8.448e-05,2]
[420292871,1775915915580,676.68047621,0.0003013,120]
[420292872,1775915932892,486.6027,8.447e-05,2]
[420292873,1775915953941,3648.78435727,8.448e-05,2]
[420292874,1775915953987,10000.01,8.448e-05,2]
[420292875,1775915954040,6151.24564273,8.448e-05,2]
[420292876,1775915963361,177.0,5.327e-05,2]
[420292877,1775915963632,177.0,5.327e-05,2]
[420292878,1775915964739,153.0,5.327e-05,2]
[420292879,1775915964999,152.0,5.327e-05,2]
[420292880,1775915965274,152.0,5.327e-05,2]
[420292881,1775915965557,152.0,5.327e-05,2]
[420292882,1775915974721,246.50721561,0.00026137,120]
[420292883,1775915996475,2440.5,0.0002737,120]
[420292884,1775915997236,2440.5,0.0002737,120]
[420292885,1775916084201,2196.0,0.00030137,120]
[420292889,1775916121394,10000.0,0.00030137,120]
[420292890,1775916128945,503.502,0.00030136,120]
[420292891,1775916129574,503.502,0.00030136,120]
[420292892,1775916130366,503.502,0.00030136,120]
[420292893,1775916130807,503.502,0.00030136,120]
[420292894,1775916131200,503.502,0.00030136,120]
[420292895,1775916132865,503.502,0.00030136,120]
[420292896,1775916133026,503.502,0.00030136,120]
[420292897,1775916133157,503.502,0.00030136,120]
[420292898,1775916133255,503.502,0.00030136,120]
[420292899,1775916133767,503.502,0.00030136,120]
[420292900,1775916133982,503.502,0.00030136,120]
[420292901,1775916134342,503.502,0.00030136,120]
[420292902,1775916134778,503.502,0.00030136,120]
[420292903,1775916135255,503.502,0.00030136,120]
[420292904,1775916135945,503.502,0.00030136,120]
[420292905,1775916136581,503.502,0.00030136,120]
[420292906,1775916136884,503.502,0.00030136,120]
[420292907,1775916137373,503.502,0.00030136,120]
[420292908,1775916137765,503.502,0.00030136,120]
[420292909,1775916138213,503.502,0.00030136,120]
[420292910,1775916138626,503.502,0.00030136,120]
[420292911,1775916139487,503.502,0.00030136,120]
[420292912,1775916139685,503.502,0.00030136,120]
[420292913,1775916139969,503.502,0.00030136,120]
[420292914,1775916140423,503.502,0.00030136,120]
[420292915,1775916140992,503.502,0.00030136,120]
[420292916,1775916141394,503.502,0.00030136,120]
[420292917,1775916141874,503.502,0.00030136,120]
[420292918,1775916142375,503.502,0.00030136,120]
[420292919,1775916142791,503.502,0.00030136,120]
[420292920,1775916144490,503.502,0.00030136,120]
[420292921,1775916145124,503.502,0.00030136,120]
[420292922,1775916145234,503.502,0.00030136,120]
[420292923,1775916145371,503.502,0.00030136,120]
[420292924,1775916145507,503.502,0.00030136,120]
[420292925,1775916145731,503.502,0.00030136,120]
[420292926,1775916146020,503.502,0.00030136,120]
[420292927,1775916146581,503.502,0.00030136,120]
[420292928,1775916147118,503.502,0.00030136,120]
[420292929,1775916148067,503.502,0.00030136,120]
[420292930,1775916148726,503.502,0.00030136,120]
[420292931,1775916149484,503.502,0.00030136,120]
[420292932,1775916150159,503.502,0.00030136,120]
[420292933,1775916150610,503.502,0.00030136,120]
[420292934,1775916150823,503.502,0.00030136,120]
[420292935,1775916151811,503.502,0.00030136,120]
[420292936,1775916152689,503.502,0.00030136,120]
[420292937,1775916153263,503.502,0.00030136,120]
[420292938,1775916155753,503.502,0.00030136,120]
[420292939,1775916155981,503.502,0.00030136,120]
[420292940,1775916156494,503.502,0.00030136,120]
[420292941,1775916157286,503.502,0.00030136,120]
[420292942,1775916157983,503.502,0.00030136,120]
[420292943,1775916158724,503.502,0.00030136,120]
[420292944,1775916158961,503.502,0.00030136,120]
[420292945,1775916159081,503.502,0.00030136,120]
[420292946,1775916159272,503.502,0.00030136,120]
[420292947,1775916159385,503.502,0.00030136,120]
[420292948,1775916159718,503.502,0.00030136,120]
[420292949,1775916160529,503.502,0.00030136,120]
[420292950,1775916161039,503.502,0.00030136,120]
[420292951,1775916161865,503.502,0.00030136,120]
[420292952,1775916162413,503.502,0.00030136,120]
[420292953,1775916162904,503.502,0.00030136,120]
[420292954,1775916163816,503.502,0.00030136,120]
[420292955,1775916166687,503.502,0.00030136,120]
[420292956,1775916166868,503.502,0.00030136,120]
[420292957,1775916167046,503.502,0.00030136,120]
[420292958,1775916167494,503.502,0.00030136,120]
[420292959,1775916168139,503.502,0.00030136,120]
[420292960,1775916168405,503.502,0.00030136,120]
[420292961,1775916168933,503.502,0.00030136,120]
[420292962,1775916169274,503.502,0.00030136,120]
[420292963,1775916169654,503.502,0.00030136,120]
[420292964,1775916169965,503.502,0.00030136,120]
[420292965,1775916170144,503.502,0.00030136,120]
[420292966,1775916170453,503.502,0.00030136,120]
[420292967,1775916171360,503.502,0.00030136,120]
[420292968,1775916171516,503.502,0.00030136,120]
[420292969,1775916172402,503.502,0.00030136,120]
[420292970,1775916173134,503.502,0.00030136,120]
[420292971,1775916173589,503.502,0.00030136,120]
[420292972,1775916173943,503.502,0.00030136,120]
[420292973,1775916174414,503.502,0.00030136,120]
[420292974,1775916175011,503.502,0.00030136,120]
[420292975,1775916175490,503.502,0.00030136,120]
[420292976,1775916175959,503.502,0.00030136,120]
[420292977,1775916177819,503.502,0.00030136,120]
[420292978,1775916178106,503.502,0.00030136,120]
[420292979,1775916178664,503.502,0.00030136,120]
[420292980,1775916178841,1955.86806191,1.16e-06,120]
[420292981,1775916179035,503.502,0.00030136,120]
[420292982,1775916179211,503.502,0.00030136,120]
[420292983,1775916179728,503.502,0.00030136,120]
[420292984,1775916180187,503.502,0.00030136,120]
[420292985,1775916181561,503.502,0.00030136,120]
[420292986,1775916181779,503.502,0.00030136,120]
[420292987,1775916181951,503.502,0.00030136,120]
[420292988,1775916182746,503.502,0.00030136,120]
[420292989,1775916183004,503.502,0.00030136,120]
[420292990,1775916183756,503.502,0.00030136,120]
[420292991,1775916184411,503.502,0.00030136,120]
[420292992,1775916184864,503.502,0.00030136,120]
[420292993,1775916185349,503.502,0.00030136,120]
[420292994,1775916185963,503.502,0.00030136,120]
[420292995,1775916186301,503.502,0.00030136,120]
[420292996,1775916186825,503.502,0.00030136,120]
[420292997,1775916187551,503.502,0.00030136,120]
[420292998,1775916188801,503.502,0.00030136,120]
[420292999,1775916188896,503.502,0.00030136,120]
[420293000,1775916196283,503.502,0.00030136,120]
[420293001,1775916196902,503.502,0.00030136,120]
[420293002,1775916197518,503.502,0.00030136,120]
[420293003,1775916198639,503.502,0.00030136,120]
[420293004,1775916200335,503.502,0.00030136,120]
[420293005,1775916200439,503.502,0.00030136,120]
[420293006,1775916200589,503.502,0.00030136,120]
[420293007,1775916200762,503.502,0.00030136,120]
[420293008,1775916201835,503.502,0.00030136,120]
[420293009,1775916202031,503.50645529,0.00030136,120]
[420293010,1775916213308,174.36,7.55e-05,2]
[420293011,1775916227320,500.0,0.00030136,120]
[420293012,1775916261045,5499.999999,0.00030137,120]
[420293013,1775916294661,300.10482053,0.00030137,120]
[420293014,1775916445238,1570.0,0.0003013,120]
[420293020,1775916570354,1568.93,4.438e-05,2]
[420293021,1775916570565,1142.47435727,4.671e-05,2]
[420293022,1775916570602,426.45564273,4.671e-05,2]
[420293023,1775916570845,1568.93,4.905e-05,2]
[420293024,1775916571078,1568.93,5.138e-05,2]
[420293025,1775916571467,1568.93,5.372e-05,2]
[420293026,1775916571672,1568.93,5.606e-05,2]
[420293027,1775916571880,1568.93,5.839e-05,2]
[420293028,1775916572063,1568.93,6.073e-05,2]
[420293029,1775916572466,159.97435727,6.306e-05,2]
[420293030,1775916572492,1408.95564273,6.306e-05,2]
[420293031,1775916572708,1568.93,6.54e-05,2]
[420293032,1775916573096,1568.93,6.773e-05,2]
[420293033,1775916573343,1568.93,7.007e-05,2]
[420293034,1775916573552,1568.93,7.24e-05,2]
[420293035,1775916573734,1568.93,7.474e-05,2]
[420293036,1775916573941,1568.93,7.708e-05,2]
[420293037,1775916574198,1568.93,7.941e-05,2]
[420293038,1775916574503,1568.93,8.175e-05,2]
[420293039,1775916574645,1568.93,8.408e-05,2]
[420293040,1775916578745,586.43,8.448e-05,2]
[420293041,1775916578777,4106.534,8.448e-05,2]
[420293042,1775916596764,2166.0,0.0002737,120]
[420293043,1775916621768,678.786325,8.178e-05,2]
[420293048,1775916632841,-272.0,8.531e-05,2]
[420293049,1775916632858,-3010.5324853,8.531e-05,2]
[420293050,1775916632868,-197.32931126,8.539e-05,2]
[420293051,1775916632879,-387.29040483,8.539e-05,2]
[420293052,1775916632890,-493.82779861,8.539e-05,2]
[420293053,1775916632919,-6.17220139,8.539e-05,2]
[420293054,1775916632936,-313.17653346,8.539e-05,2]
[420293055,1775916632946,-500.0,8.539e-05,2]
[420293056,1775916632956,-266.21126515,8.539e-05,2]
[420293057,1775916633019,-233.78873485,8.539e-05,2]
[420293058,1775916633035,-500.0,8.539e-05,2]
[420293059,1775916633049,-500.0,8.539e-05,2]
[420293060,1775916633060,-500.0,8.539e-05,2]
[420293061,1775916633072,-300.0,8.54e-05,2]
[420293062,1775916633095,-650.0,8.54e-05,2]
[420293063,1775916633107,-224.83768238,8.54e-05,2]
[420293064,1775916633149,-439.78,8.54e-05,2]
[420293065,1775916633164,-153932.43766718,8.54e-05,2]
[420293066,1775916638780,-311.73785927,8.539e-05,2]
[420293067,1775916638790,-328.67514533,8.539e-05,2]
[420293068,1775916638821,-327.71493948,8.539e-05,2]
[420293114,1775916641323,-0.48820411,8.539e-05,2]
[420293115,1775916641360,-171.79685641,8.539e-05,2]
[420293116,1775916641377,-500.0,8.539e-05,2]
[420293117,1775916641387,-21.47700527,8.539e-05,2]
[420293149,1775916647393,-370.59020871,8.539e-05,2]
[420293150,1775916647403,-500.0,8.539e-05,2]
[420293151,1775916647425,-500.0,8.539e-05,2]
[420293152,1775916647442,-500.0,8.539e-05,2]
[420293153,1775916647453,-500.0,8.539e-05,2]
[420293154,1775916647463,-500.0,8.539e-05,2]
[420293155,1775916647473,-406.39727532,8.539e-05,2]
[420293156,1775916647490,-500.0,8.539e-05,2]
[420293157,1775916647502,-223.04326455,8.539e-05,2]
[420293158,1775916647514,-276.95673545,8.539e-05,2]
[420293159,1775916647531,-500.0,8.539e-05,2]
[420293160,1775916647550,-500.0,8.539e-05,2]
[420293161,1775916647560,-500.0,8.539e-05,2]
[420293162,1775916647582,-500.0,8.539e-05,2]
[420293163,1775916647596,-500.0,8.539e-05,2]
[420293164,1775916647608,-389.59073304,8.539e-05,2]
[420293165,1775916647638,-500.0,8.539e-05,2]
[420293166,1775916647664,-500.0,8.539e-05,2]
[420293167,1775916647691,-423.80859651,8.539e-05,2]
[420293168,1775916647707,-462145.83716268,8.54e-05,2]
[420293169,1775916648886,-683.24999999,8.54e-05,2]
[420293170,1775916688704,3884.712,8.377e-05,2]
[420293171,1775916688770,166.589,8.377e-05,2]
[420293172,1775916721303,500.0,8.44e-05,2]
[420293173,1775916742979,663.388675,8.448e-05,2]
[420293174,1775916743030,10000.01,8.448e-05,2]
[420293175,1775916743067,3117.541625,8.448e-05,2]
[420293176,1775916776482,6882.468375,8.448e-05,2]
[420293177,1775916776519,10000.01,8.448e-05,2]
[420293178,1775916776563,175.366425,8.448e-05,2]
[420293179,1775916876702,500.0,8.439e-05,2]
[420293182,1775917099504,8354.69,0.00030137,120]
[420293184,1775917174702,10000.0,0.00030137,120]
[420293185,1775917186230,10000.0,0.00030137,120]
[420293186,1775917196936,2000.0,0.0002737,120]
[420293187,1775917197569,2000.0,0.0002737,120]
[420293188,1775917253804,313.63,0.00030137,120]
[420293189,1775917311742,3166.98,0.0003,120]
[420293190,1775917531413,198.58161991,0.00026137,120]
[420293191,1775917797019,2390.0,0.0002737,120]
[420293192,1775917797549,2390.0,0.0002737,120]
[420293194,1775917833216,-1200.0,8.536e-05,2]
[420293195,1775917833225,-300.0,8.537e-05,2]
[420293196,1775917833237,-300.0,8.537e-05,2]
[420293197,1775917833252,-300.0,8.537e-05,2]
[420293198,1775917833261,-304.43487073,8.537e-05,2]
[420293199,1775917833270,-2773.83208217,8.537e-05,2]
[420293200,1775917833314,-412.77728069,8.537e-05,2]
[420293201,1775917833327,-309.88642084,8.537e-05,2]
[420293202,1775917833342,-584.79955105,8.537e-05,2]
[420293203,1775917833356,-433.39195199,8.537e-05,2]
[420293204,1775917833373,-485.31271326,8.537e-05,2]
[420293205,1775917833383,-156.13670826,8.538e-05,2]
[420293206,1775917833393,-3689.29,8.538e-05,2]
[420293207,1775917833403,-150.0,8.541e-05,2]
[420293208,1775917833415,-151.0,8.545e-05,2]
[420293209,1775917833424,-151.0,8.545e-05,2]
[420293210,1775917833434,-151.0,8.545e-05,2]
[420293211,1775917833444,-151.0,8.545e-05,2]
[420293212,1775917833455,-1568.93,8.642e-05,2]
[420293213,1775917833467,-1500.0,8.867e-05,2]
[420293214,1775917833478,-1568.93,8.875e-05,2]
[420293215,1775917833488,-2328.97,8.899e-05,2]